[Event "1st Rapid Chess Tournament Château Montaiguillon"]
[Site "Montagne - Saint Emilion, France"]
[Date "2019.09.08"]
[Round "7.5"]
[White "Mullon, Jean-Baptiste"]
[Black "Rabouan, Christophe"]
[Result "1-0"]
[TimeControl "12' + 3''"]
[WhiteElo "2378"]
[BlackElo "1811"]

1. e4 {[%clk 00:12:03]} {[%emt 00:00:02]} c6 {[%clk 00:11:59]} {[%emt
00:00:08]} 2. Nf3 {[%clk 00:12:00]} {[%emt 00:00:06]} d5 {[%clk 00:11:58]}
{[%emt 00:00:04]} 3. Nc3 {[%clk 00:12:02]} {[%emt 00:00:01]} Bg4 {[%clk
00:11:59]} {[%emt 00:00:02]} 4. h3 {[%clk 00:12:02]} {[%emt 00:00:03]} Bh5
{[%clk 00:11:55]} {[%emt 00:00:07]} 5. exd5 {[%clk 00:11:55]} {[%emt 00:00:10]}
cxd5 {[%clk 00:11:47]} {[%emt 00:00:11]} 6. d4 {[%clk 00:11:41]} {[%emt
00:00:17]} e6 {[%clk 00:11:33]} {[%emt 00:00:17]} 7. Bb5+ {[%clk 00:11:36]}
{[%emt 00:00:08]} Nc6 {[%clk 00:11:34]} {[%emt 00:00:03]} 8. g4 {[%clk
00:11:36]} {[%emt 00:00:02]} Bg6 {[%clk 00:11:33]} {[%emt 00:00:04]} 9. Ne5
{[%clk 00:11:35]} {[%emt 00:00:04]} Qc7 {[%clk 00:11:34]} {[%emt 00:00:02]} 10.
h4 {[%clk 00:11:05]} {[%emt 00:00:34]} h6 {[%clk 00:09:49]} {[%emt 00:01:48]}
11. Nxg6 {[%clk 00:10:43]} {[%emt 00:00:25]} fxg6 {[%clk 00:09:50]} {[%emt
00:00:02]} 12. Bd3 {[%clk 00:10:41]} {[%emt 00:00:05]} O-O-O {[%clk 00:09:13]}
{[%emt 00:00:41]} 13. Be3 {[%clk 00:09:01]} {[%emt 00:01:43]} e5 {[%clk
00:08:35]} {[%emt 00:00:41]} 14. Nb5 {[%clk 00:08:50]} {[%emt 00:00:14]} Qa5+
{[%clk 00:08:24]} {[%emt 00:00:14]} 15. Kf1 {[%clk 00:07:06]} {[%emt 00:01:47]}
a6 {[%clk 00:07:16]} {[%emt 00:01:11]} 16. a4 {[%clk 00:07:08]} {[%emt
00:00:01]} Nge7 {[%clk 00:04:47]} {[%emt 00:02:32]} 17. c3 {[%clk 00:06:25]}
{[%emt 00:00:47]} Rd7 {[%clk 00:04:39]} {[%emt 00:00:12]} 18. dxe5 {[%clk
00:04:17]} {[%emt 00:02:10]} Nxe5 {[%clk 00:04:01]} {[%emt 00:00:40]} 19. Nd4
{[%clk 00:04:19]} {[%emt 00:00:01]} Qd8 {[%clk 00:02:36]} {[%emt 00:01:29]} 20.
b4 {[%clk 00:03:57]} {[%emt 00:00:25]} Nxd3 {[%clk 00:02:01]} {[%emt 00:00:37]}
21. Qxd3 {[%clk 00:03:58]} {[%emt 00:00:01]} Rd6 {[%clk 00:01:25]} {[%emt
00:00:39]} 22. b5 {[%clk 00:03:55]} {[%emt 00:00:07]} a5 {[%clk 00:01:18]}
{[%emt 00:00:10]} 23. b6 {[%clk 00:03:27]} {[%emt 00:00:31]} Nc6 {[%clk
00:00:45]} {[%emt 00:00:36]} 24. Nb5 {[%clk 00:03:25]} {[%emt 00:00:05]} Re6
{[%clk 00:00:44]} {[%emt 00:00:04]} 25. Na7+ {[%clk 00:03:00]} {[%emt
00:00:28]} Kb8 {[%clk 00:00:39]} {[%emt 00:00:07]} 26. Bf4+ {[%clk 00:03:00]}
{[%emt 00:00:04]} Ka8 {[%clk 00:00:41]} {[%emt 00:00:02]} 27. Nb5 {[%clk
00:03:01]} {[%emt 00:00:02]} Kb8 {[%emt 00:00:51]} 28. Be3 {[%emt 00:00:06]}
Kc8 29. Na7+ {[%emt 00:00:07]} Kb8 30. Bf4+ Bd6 {[%emt 00:00:06]} 31. Nxc6+
{[%emt 00:00:05]} bxc6 {[%emt 00:00:13]} 32. Qa6 1-0

[Event "1st Rapid Chess Tournament Château Montaiguillon"]
[Site "Montagne - Saint Emilion, France"]
[Date "2019.09.08"]
[Round "7.3"]
[White "Saada, Julien"]
[Black "Fressinet, Laurent"]
[Result "0-1"]
[TimeControl "12' + 3''"]
[WhiteElo "2258"]
[BlackElo "2625"]

1. d4 {[%clk 00:12:03]} {[%emt 00:00:02]} Nf6 {[%clk 00:12:00]} {[%emt
00:00:06]} 2. Bg5 {[%clk 00:12:02]} {[%emt 00:00:05]} d5 {[%clk 00:11:52]}
{[%emt 00:00:11]} 3. Bxf6 {[%clk 00:12:00]} {[%emt 00:00:05]} gxf6 {[%clk
00:11:54]} {[%emt 00:00:02]} 4. c4 {[%clk 00:12:01]} {[%emt 00:00:01]} e5
{[%clk 00:11:06]} {[%emt 00:00:51]} 5. e3 {[%clk 00:11:42]} {[%emt 00:00:22]}
Nc6 {[%clk 00:10:42]} {[%emt 00:00:27]} 6. cxd5 {[%clk 00:10:46]} {[%emt
00:00:59]} Qxd5 {[%clk 00:10:43]} {[%emt 00:00:02]} 7. Nc3 {[%clk 00:10:42]}
{[%emt 00:00:07]} Bb4 {[%clk 00:10:31]} {[%emt 00:00:15]} 8. a3 {[%clk
00:10:03]} {[%emt 00:00:43]} Bxc3+ {[%clk 00:10:32]} {[%emt 00:00:02]} 9. bxc3
{[%clk 00:10:04]} {[%emt 00:00:01]} Bf5 {[%clk 00:10:23]} {[%emt 00:00:12]} 10.
Nf3 {[%clk 00:09:20]} {[%emt 00:00:47]} O-O-O {[%clk 00:10:18]} {[%emt
00:00:08]} 11. Qa4 {[%clk 00:08:40]} {[%emt 00:00:43]} Be4 {[%clk 00:09:42]}
{[%emt 00:00:38]} 12. Bc4 {[%clk 00:07:45]} {[%emt 00:00:58]} Qd6 {[%clk
00:09:08]} {[%emt 00:00:37]} 13. Bb5 {[%clk 00:07:08]} {[%emt 00:00:42]} a6
{[%clk 00:07:13]} {[%emt 00:01:58]} 14. dxe5 {[%clk 00:06:27]} {[%emt
00:00:43]} Qc5 {[%clk 00:07:09]} {[%emt 00:00:07]} 15. Qc4 {[%clk 00:05:13]}
{[%emt 00:01:16]} Qxb5 {[%clk 00:06:23]} {[%emt 00:00:50]} 16. Qxe4 {[%clk
00:05:09]} {[%emt 00:00:07]} fxe5 {[%clk 00:06:24]} {[%emt 00:00:02]} 17. Rb1
{[%clk 00:04:40]} {[%emt 00:00:32]} Qd3 {[%clk 00:06:21]} {[%emt 00:00:06]} 18.
Qxd3 {[%clk 00:04:14]} {[%emt 00:00:30]} Rxd3 {[%clk 00:06:22]} {[%emt
00:00:02]} 19. Rc1 {[%clk 00:03:57]} {[%emt 00:00:21]} e4 {[%clk 00:05:31]}
{[%emt 00:00:54]} 20. Ke2 {[%clk 00:02:31]} {[%emt 00:01:29]} Rhd8 {[%clk
00:05:03]} {[%emt 00:00:31]} 21. Nd4 {[%clk 00:02:32]} {[%emt 00:00:02]} Ne5
{[%clk 00:04:48]} {[%emt 00:00:18]} 22. Rhd1 {[%clk 00:01:42]} {[%emt
00:00:54]} c5 {[%clk 00:04:47]} {[%emt 00:00:04]} 23. Nf5 {[%clk 00:01:36]}
{[%emt 00:00:08]} Nc4 {[%clk 00:04:34]} {[%emt 00:00:16]} 24. Ng3 {[%clk
00:01:30]} {[%emt 00:00:10]} Nb2 {[%clk 00:04:17]} {[%emt 00:00:20]} 25. Re1
{[%clk 00:01:09]} {[%emt 00:00:24]} Rd2+ {[%clk 00:03:33]} {[%emt 00:00:47]} 26.
Kf1 {[%clk 00:01:11]} f5 {[%clk 00:03:32]} {[%emt 00:00:05]} 27. Re2 {[%clk
00:00:54]} {[%emt 00:00:20]} Rd1+ {[%clk 00:02:50]} {[%emt 00:00:43]} 28. Rxd1
{[%clk 00:00:49]} {[%emt 00:00:10]} Rxd1+ {[%clk 00:02:52]} {[%emt 00:00:02]}
29. Re1 {[%clk 00:00:51]} Rd5 {[%clk 00:02:53]} {[%emt 00:00:01]} 30. Ke2
{[%clk 00:00:45]} {[%emt 00:00:09]} b5 {[%clk 00:02:39]} {[%emt 00:00:17]} 31.
Rb1 {[%clk 00:00:34]} {[%emt 00:00:14]} Na4 {[%clk 00:01:46]} {[%emt 00:00:56]}
32. Rc1 {[%clk 00:00:30]} {[%emt 00:00:08]} Rd3 {[%clk 00:01:48]} 33. Nxf5
{[%clk 00:00:11]} {[%emt 00:00:22]} Nxc3+ {[%clk 00:01:48]} {[%emt 00:00:03]}
34. Ke1 {[%clk 00:00:14]} Kd7 {[%clk 00:01:44]} {[%emt 00:00:06]} 35. Ng3
{[%clk 00:00:11]} {[%emt 00:00:07]} b4 {[%clk 00:01:39]} {[%emt 00:00:08]} 36.
axb4 {[%clk 00:00:07]} {[%emt 00:00:08]} cxb4 {[%clk 00:01:41]} {[%emt
00:00:01]} 0-1

[ePGN "0.1;DGT LiveChess/2.2.4"]

[Event "1st Rapid Chess Tournament Château Montaiguillon"]
[Site "Montagne - Saint Emilion, France"]
[Date "2019.09.08"]
[Round "8.2"]
[White "Fressinet, Laurent"]
[Black "Roselle, Tristan"]
[Result "1-0"]
[TimeControl "12' + 3''"]
[WhiteElo "2625"]
[BlackElo "2144"]

1. d4 {[%clk 00:12:04]} {[%emt 00:00:01]} d5 {[%clk 00:12:04]} {[%emt
00:00:03]} 2. Nf3 {[%clk 00:12:05]} {[%emt 00:00:01]} Nf6 {[%clk 00:12:05]}
{[%emt 00:00:02]} 3. c4 {[%clk 00:12:06]} {[%emt 00:00:03]} e6 {[%clk
00:12:06]} 4. Nc3 {[%clk 00:12:06]} {[%emt 00:00:03]} c5 {[%clk 00:12:04]}
{[%emt 00:00:05]} 5. e3 {[%clk 00:12:04]} {[%emt 00:00:04]} Nc6 {[%clk
00:12:04]} {[%emt 00:00:03]} 6. a3 {[%clk 00:11:50]} {[%emt 00:00:18]} dxc4
{[%clk 00:11:53]} {[%emt 00:00:14]} 7. Bxc4 {[%clk 00:11:49]} {[%emt 00:00:05]}
Be7 {[%clk 00:11:47]} {[%emt 00:00:08]} 8. O-O {[%clk 00:11:19]} {[%emt
00:00:32]} O-O {[%clk 00:11:47]} {[%emt 00:00:03]} 9. dxc5 {[%clk 00:10:59]}
{[%emt 00:00:23]} Qxd1 {[%clk 00:11:25]} {[%emt 00:00:25]} 10. Rxd1 {[%clk
00:11:01]} {[%emt 00:00:02]} Bxc5 {[%clk 00:11:24]} {[%emt 00:00:04]} 11. b4
{[%clk 00:11:00]} {[%emt 00:00:04]} Be7 {[%clk 00:11:21]} {[%emt 00:00:07]} 12.
Bb2 {[%clk 00:11:01]} {[%emt 00:00:02]} b6 {[%clk 00:11:14]} {[%emt 00:00:10]}
13. Nb5 {[%clk 00:10:18]} {[%emt 00:00:45]} Bb7 {[%clk 00:11:02]} {[%emt
00:00:15]} 14. Nd6 {[%clk 00:09:58]} {[%emt 00:00:22]} Bxd6 {[%clk 00:10:52]}
{[%emt 00:00:14]} 15. Rxd6 {[%clk 00:09:59]} {[%emt 00:00:01]} Rfd8 {[%clk
00:10:33]} {[%emt 00:00:22]} 16. Rxd8+ {[%clk 00:08:40]} {[%emt 00:01:22]} Rxd8
{[%clk 00:10:34]} {[%emt 00:00:02]} 17. Rc1 {[%clk 00:08:41]} {[%emt 00:00:01]}
Kf8 {[%clk 00:08:58]} {[%emt 00:01:40]} 18. Be2 {[%clk 00:08:10]} {[%emt
00:00:33]} Rc8 {[%clk 00:08:40]} {[%emt 00:00:21]} 19. Nd2 {[%clk 00:07:53]}
{[%emt 00:00:19]} Ne7 {[%clk 00:08:21]} {[%emt 00:00:23]} 20. Rxc8+ {[%clk
00:07:41]} {[%emt 00:00:15]} Nxc8 {[%clk 00:08:23]} {[%emt 00:00:02]} 21. f3
{[%clk 00:07:37]} {[%emt 00:00:07]} Ke7 {[%clk 00:08:00]} {[%emt 00:00:26]} 22.
e4 {[%clk 00:07:32]} {[%emt 00:00:08]} Ne8 {[%clk 00:07:48]} {[%emt 00:00:16]}
23. Kf2 {[%clk 00:07:01]} {[%emt 00:00:34]} f6 {[%clk 00:07:48]} {[%emt
00:00:03]} 24. e5 {[%clk 00:06:58]} {[%emt 00:00:05]} Nc7 {[%clk 00:07:22]}
{[%emt 00:00:30]} 25. exf6+ {[%clk 00:06:41]} {[%emt 00:00:21]} gxf6 {[%clk
00:07:23]} {[%emt 00:00:02]} 26. Bd3 {[%clk 00:06:43]} {[%emt 00:00:01]} h6
{[%clk 00:05:59]} {[%emt 00:01:27]} 27. Bc1 {[%clk 00:06:31]} {[%emt 00:00:14]}
Kf7 {[%clk 00:05:33]} {[%emt 00:00:30]} 28. Nf1 {[%clk 00:06:25]} {[%emt
00:00:08]} h5 {[%clk 00:05:04]} {[%emt 00:00:32]} 29. Kg3 {[%clk 00:04:38]}
{[%emt 00:01:49]} Ne7 {[%clk 00:05:05]} {[%emt 00:00:02]} 30. Kh4 {[%clk
00:04:09]} {[%emt 00:00:30]} Ng6+ {[%clk 00:04:45]} {[%emt 00:00:27]} 31. Kxh5
{[%clk 00:03:53]} {[%emt 00:00:19]} Ne5 {[%clk 00:04:35]} {[%emt 00:00:13]} 32.
Be2 {[%clk 00:03:25]} {[%emt 00:00:28]} Ba6 {[%clk 00:04:23]} {[%emt 00:00:18]}
33. Bxa6 {[%clk 00:02:49]} {[%emt 00:00:39]} Nxa6 {[%clk 00:04:24]} {[%emt
00:00:02]} 34. Kh4 {[%clk 00:02:38]} {[%emt 00:00:12]} Nd3 {[%clk 00:04:20]}
{[%emt 00:00:10]} 35. Bd2 {[%clk 00:02:39]} {[%emt 00:00:01]} Nc7 {[%clk
00:04:21]} {[%emt 00:00:02]} 36. Ne3 {[%clk 00:02:31]} {[%emt 00:00:10]} Nb5
{[%clk 00:04:05]} {[%emt 00:00:21]} 37. Nc2 {[%clk 00:02:14]} {[%emt 00:00:18]}
Nd6 {[%clk 00:03:47]} {[%emt 00:00:22]} 38. g4 {[%clk 00:01:54]} {[%emt
00:00:23]} Nc4 {[%clk 00:03:48]} {[%emt 00:00:03]} 39. Bc3 {[%clk 00:01:56]}
Kg6 {[%clk 00:03:31]} {[%emt 00:00:20]} 40. Kg3 {[%clk 00:01:54]} {[%emt
00:00:04]} Nc1 {[%clk 00:02:42]} {[%emt 00:00:51]} 41. Kf2 {[%clk 00:01:38]}
{[%emt 00:00:19]} Nd3+ {[%clk 00:02:42]} {[%emt 00:00:04]} 42. Ke2 {[%clk
00:01:29]} {[%emt 00:00:08]} Nf4+ {[%clk 00:02:44]} {[%emt 00:00:07]} 43. Kf1
{[%clk 00:01:31]} e5 {[%clk 00:02:31]} {[%emt 00:00:17]} 44. h4 {[%clk
00:01:24]} {[%emt 00:00:09]} Nd5 {[%clk 00:02:32]} {[%emt 00:00:02]} 45. Be1
{[%clk 00:01:16]} {[%emt 00:00:09]} b5 {[%clk 00:02:22]} {[%emt 00:00:16]} 46.
Bg3 {[%clk 00:00:50]} {[%emt 00:00:28]} Nce3+ {[%clk 00:02:12]} {[%emt
00:00:14]} 47. Nxe3 {[%clk 00:00:52]} {[%emt 00:00:02]} Nxe3+ {[%clk 00:02:14]}
48. Ke2 {[%clk 00:00:52]} {[%emt 00:00:03]} Nc2 {[%clk 00:02:15]} {[%emt
00:00:02]} 49. h5+ {[%clk 00:00:48]} {[%emt 00:00:06]} Kg7 {[%clk 00:02:12]}
{[%emt 00:00:06]} 50. Bh4 {[%clk 00:00:19]} {[%emt 00:00:31]} Nxa3 {[%clk
00:02:13]} {[%emt 00:00:02]} 51. h6+ {[%clk 00:00:21]} Kxh6 {[%clk 00:02:06]}
{[%emt 00:00:11]} 52. Bxf6 {[%clk 00:00:23]} Nc2 {[%clk 00:01:55]} {[%emt
00:00:13]} 53. Bxe5 {[%clk 00:00:18]} {[%emt 00:00:09]} Nxb4 {[%clk 00:01:57]}
{[%emt 00:00:01]} 54. f4 {[%clk 00:00:17]} {[%emt 00:00:03]} Nd5 {[%clk
00:01:32]} {[%emt 00:00:29]} 55. Kd3 {[%clk 00:00:19]} {[%emt 00:00:02]} b4
{[%clk 00:00:43]} {[%emt 00:00:52]} 56. Kd4 {[%clk 00:00:14]} {[%emt 00:00:06]}
Nc3 {[%clk 00:00:26]} {[%emt 00:00:21]} 57. Kc4 {[%clk 00:00:15]} {[%emt
00:00:03]} a5 {[%clk 00:00:28]} {[%emt 00:00:02]} 58. Bxc3 {[%clk 00:00:17]}
{[%emt 00:00:01]} 1-0

[Event "1st Rapid Chess Tournament Château Montaiguillon"]
[Site "Montagne - Saint Emilion, France"]
[Date "2019.09.08"]
[Round "8.1"]
[White "Sochacki, Christophe"]
[Black "Moussard, Jules"]
[Result "0-1"]
[TimeControl "12' + 3''"]
[WhiteElo "2481"]
[BlackElo "2576"]

1. d4 {[%clk 00:12:05]} {[%emt 00:11:19]} f5 {[%clk 00:12:01]} {[%emt
00:00:05]} 2. c4 {[%clk 00:11:43]} {[%emt 00:00:26]} Nf6 {[%clk 00:11:56]}
{[%emt 00:00:07]} 3. Nc3 {[%clk 00:11:45]} {[%emt 00:00:01]} d6 {[%clk
00:11:58]} 4. g3 {[%clk 00:11:17]} {[%emt 00:00:31]} g6 {[%clk 00:11:58]}
{[%emt 00:00:03]} 5. Bg2 {[%clk 00:11:16]} {[%emt 00:00:04]} Bg7 {[%clk
00:11:59]} {[%emt 00:00:01]} 6. Nh3 {[%clk 00:11:13]} {[%emt 00:00:07]} e5
{[%clk 00:11:08]} {[%emt 00:00:54]} 7. dxe5 {[%clk 00:11:11]} {[%emt 00:00:05]}
dxe5 {[%clk 00:11:10]} {[%emt 00:00:01]} 8. Qxd8+ Kxd8 {[%clk 00:11:11]} 9. Ng5
{[%clk 00:10:35]} {[%emt 00:00:39]} Ke7 {[%clk 00:10:12]} {[%emt 00:01:02]} 10.
Be3 {[%clk 00:09:39]} {[%emt 00:01:00]} Na6 {[%clk 00:09:01]} {[%emt 00:01:14]}
11. b4 {[%clk 00:07:54]} {[%emt 00:01:47]} h6 {[%clk 00:06:49]} {[%emt
00:02:15]} 12. Nf3 {[%clk 00:07:55]} {[%emt 00:00:02]} Ng4 {[%clk 00:06:31]}
{[%emt 00:00:21]} 13. Nd5+ {[%clk 00:07:54]} {[%emt 00:00:05]} Kf7 {[%clk
00:06:30]} {[%emt 00:00:04]} 14. b5 {[%clk 00:07:41]} {[%emt 00:00:14]} Nxe3
{[%clk 00:06:26]} {[%emt 00:00:09]} 15. fxe3 {[%clk 00:07:43]} {[%emt
00:00:01]} Nc5 {[%clk 00:06:18]} {[%emt 00:00:10]} 16. Nxc7 {[%clk 00:07:39]}
{[%emt 00:00:08]} Rb8 {[%clk 00:06:17]} {[%emt 00:00:04]} 17. Rd1 {[%clk
00:07:04]} {[%emt 00:00:38]} e4 {[%clk 00:06:06]} {[%emt 00:00:13]} 18. Nd4
{[%clk 00:07:06]} Be5 {[%clk 00:06:04]} {[%emt 00:00:06]} 19. Nd5 {[%clk
00:07:08]} {[%emt 00:00:01]} h5 {[%clk 00:06:06]} {[%emt 00:00:01]} 20. Kf2
{[%clk 00:06:51]} {[%emt 00:00:20]} Be6 {[%clk 00:05:41]} {[%emt 00:00:28]} 21.
Nxe6 {[%clk 00:06:40]} {[%emt 00:00:14]} Nxe6 {[%clk 00:05:25]} {[%emt
00:00:18]} 22. Nf4 {[%clk 00:06:15]} {[%emt 00:00:29]} Rhd8 {[%clk 00:05:26]}
{[%emt 00:00:02]} 23. Rd5 {[%clk 00:06:06]} {[%emt 00:00:12]} Rxd5 {[%clk
00:05:27]} {[%emt 00:00:02]} 24. Nxd5 {[%clk 00:05:18]} {[%emt 00:00:51]} Rc8
{[%clk 00:05:28]} {[%emt 00:00:02]} 25. Rc1 {[%clk 00:05:20]} {[%emt 00:00:01]}
Nc7 {[%clk 00:05:03]} {[%emt 00:00:28]} 26. b6 {[%clk 00:03:54]} {[%emt
00:01:29]} Nxd5 {[%clk 00:04:44]} {[%emt 00:00:22]} 27. bxa7 {[%clk 00:03:48]}
{[%emt 00:00:09]} Nc3 {[%clk 00:04:31]} {[%emt 00:00:15]} 28. h3 {[%clk
00:03:29]} {[%emt 00:00:23]} Ra8 {[%clk 00:04:26]} {[%emt 00:00:09]} 29. g4
{[%clk 00:03:30]} {[%emt 00:00:02]} h4 {[%clk 00:04:25]} {[%emt 00:00:03]} 30.
gxf5 {[%clk 00:03:29]} {[%emt 00:00:05]} gxf5 {[%clk 00:04:27]} {[%emt
00:00:01]} 31. Rc2 {[%clk 00:03:08]} {[%emt 00:00:24]} Rxa7 {[%clk 00:04:18]}
{[%emt 00:00:12]} 32. Rd2 {[%clk 00:03:10]} Rxa2 {[%clk 00:04:11]} {[%emt
00:00:10]} 33. Rd7+ {[%clk 00:03:12]} {[%emt 00:00:01]} Ke6 {[%clk 00:04:13]}
{[%emt 00:00:01]} 34. Rxb7 {[%clk 00:03:11]} {[%emt 00:00:04]} Ra1 {[%clk
00:04:06]} {[%emt 00:00:11]} 35. Rb6+ {[%clk 00:03:08]} {[%emt 00:00:05]} Kd7
{[%clk 00:04:07]} {[%emt 00:00:01]} 36. Bf1 {[%clk 00:03:08]} {[%emt 00:00:02]}
Nd1+ {[%clk 00:04:09]} {[%emt 00:00:02]} 37. Kg1 {[%clk 00:03:06]} {[%emt
00:00:05]} Nxe3 {[%clk 00:04:08]} {[%emt 00:00:04]} 38. Kf2 {[%clk 00:03:04]}
{[%emt 00:00:06]} Bd4 {[%clk 00:03:57]} {[%emt 00:00:14]} 0-1

[Event "1st Rapid Chess Tournament Château Montaiguillon"]
[Site "Montagne - Saint Emilion, France"]
[Date "2019.09.08"]
[Round "8.4"]
[White "Fantinel, Thibault"]
[Black "Lagarde, Maxime"]
[Result "0-1"]
[TimeControl "12' + 3''"]
[WhiteElo "2381"]
[BlackElo "2599"]

1. e4 {[%clk 00:12:02]} {[%emt 00:00:01]} c5 {[%clk 00:12:05]} {[%emt
00:00:02]} 2. Nf3 {[%clk 00:12:01]} {[%emt 00:00:04]} e6 {[%clk 00:12:04]}
{[%emt 00:00:05]} 3. d4 {[%clk 00:11:51]} {[%emt 00:00:13]} cxd4 {[%clk
00:12:05]} {[%emt 00:00:01]} 4. Nxd4 {[%clk 00:11:52]} Nf6 {[%clk 00:12:07]}
{[%emt 00:00:03]} 5. Nc3 {[%clk 00:11:54]} Nc6 {[%clk 00:12:09]} 6. g3 {[%clk
00:11:56]} {[%emt 00:00:01]} Qb6 {[%clk 00:11:40]} {[%emt 00:00:32]} 7. Nb3
{[%clk 00:11:41]} {[%emt 00:00:18]} d6 {[%clk 00:11:35]} {[%emt 00:00:07]} 8.
Bg2 {[%clk 00:11:29]} {[%emt 00:00:15]} a6 {[%clk 00:11:36]} {[%emt 00:00:02]}
9. O-O {[%clk 00:11:21]} {[%emt 00:00:10]} Be7 {[%clk 00:11:38]} 10. Ne2 {[%clk
00:10:01]} {[%emt 00:01:23]} O-O {[%clk 00:10:56]} {[%emt 00:00:45]} 11. Be3
{[%clk 00:08:00]} {[%emt 00:02:03]} Qc7 {[%clk 00:10:58]} {[%emt 00:00:02]} 12.
Nbd4 {[%clk 00:07:28]} {[%emt 00:00:35]} Bd7 {[%clk 00:10:37]} {[%emt
00:00:25]} 13. c4 {[%clk 00:06:36]} {[%emt 00:00:55]} Nxd4 {[%clk 00:09:25]}
{[%emt 00:01:15]} 14. Qxd4 {[%clk 00:06:21]} {[%emt 00:00:18]} Ng4 {[%clk
00:09:22]} {[%emt 00:00:06]} 15. Rac1 {[%clk 00:04:08]} {[%emt 00:02:17]} Rac8
{[%clk 00:09:07]} {[%emt 00:00:18]} 16. b3 {[%clk 00:04:01]} {[%emt 00:00:10]}
Bf6 {[%clk 00:08:52]} {[%emt 00:00:18]} 17. Qd2 {[%clk 00:04:00]} {[%emt
00:00:04]} Nxe3 {[%clk 00:08:53]} {[%emt 00:00:02]} 18. Qxe3 {[%clk 00:04:02]}
{[%emt 00:00:01]} Qa5 {[%clk 00:08:22]} {[%emt 00:00:33]} 19. a4 {[%clk
00:03:29]} {[%emt 00:00:36]} b5 {[%clk 00:08:15]} {[%emt 00:00:10]} 20. axb5
{[%clk 00:03:26]} {[%emt 00:00:07]} axb5 {[%clk 00:08:16]} {[%emt 00:00:02]} 21.
Rfd1 {[%clk 00:03:00]} {[%emt 00:00:28]} bxc4 {[%clk 00:07:52]} {[%emt
00:00:27]} 22. Rxd6 {[%clk 00:01:54]} {[%emt 00:01:10]} Bb5 {[%clk 00:06:17]}
{[%emt 00:01:38]} 23. bxc4 {[%clk 00:01:51]} {[%emt 00:00:06]} Bxc4 {[%clk
00:06:11]} {[%emt 00:00:08]} 24. Rdd1 {[%clk 00:01:20]} {[%emt 00:00:34]} Bg5
{[%clk 00:05:03]} {[%emt 00:01:10]} 25. f4 {[%clk 00:01:11]} {[%emt 00:00:13]}
Be7 {[%clk 00:05:04]} {[%emt 00:00:01]} 26. Kh1 {[%clk 00:01:04]} {[%emt
00:00:10]} e5 {[%clk 00:03:52]} {[%emt 00:01:16]} 27. Nc3 {[%clk 00:00:41]}
{[%emt 00:00:26]} exf4 {[%clk 00:03:43]} {[%emt 00:00:13]} 28. gxf4 {[%clk
00:00:41]} {[%emt 00:00:02]} Bc5 {[%clk 00:03:00]} {[%emt 00:00:46]} 29. Qf3
{[%clk 00:00:27]} {[%emt 00:00:17]} Bb3 {[%clk 00:02:55]} {[%emt 00:00:08]} 30.
Rd3 {[%clk 00:00:11]} {[%emt 00:00:20]} Bb4 {[%clk 00:02:34]} {[%emt 00:00:25]}
31. e5 {[%clk 00:00:09]} {[%emt 00:00:05]} Qa3 {[%clk 00:02:17]} {[%emt
00:00:17]} 32. Rb1 {[%clk 00:00:05]} {[%emt 00:00:10]} Bc2 {[%clk 00:02:13]}
{[%emt 00:00:06]} 0-1

[Event "1st Rapid Chess Tournament Château Montaiguillon"]
[Site "Montagne - Saint Emilion, France"]
[Date "2019.09.08"]
[Round "8.5"]
[White "Cornette, Matthieu"]
[Black "Fournier, Loic"]
[Result "1-0"]
[TimeControl "12' + 3''"]
[WhiteElo "2548"]
[BlackElo "2135"]

1. e4 {[%clk 00:12:05]} c5 {[%clk 00:12:05]} {[%emt 00:00:02]} 2. Nf3 {[%clk
00:12:06]} {[%emt 00:00:02]} Nc6 {[%clk 00:12:06]} {[%emt 00:00:01]} 3. Bb5
{[%clk 00:12:04]} {[%emt 00:00:05]} g6 {[%clk 00:11:56]} {[%emt 00:00:13]} 4.
O-O {[%clk 00:11:54]} {[%emt 00:00:13]} Bg7 {[%clk 00:11:57]} {[%emt 00:00:01]}
5. Nc3 {[%clk 00:11:56]} {[%emt 00:00:02]} Nf6 {[%clk 00:11:36]} {[%emt
00:00:24]} 6. e5 {[%clk 00:11:54]} {[%emt 00:00:07]} Nh5 {[%clk 00:11:09]}
{[%emt 00:00:28]} 7. Re1 {[%clk 00:10:03]} {[%emt 00:01:54]} Nf4 {[%clk
00:10:18]} {[%emt 00:00:54]} 8. d4 {[%clk 00:09:17]} {[%emt 00:00:50]} cxd4
{[%clk 00:09:58]} {[%emt 00:00:23]} 9. Nxd4 {[%clk 00:09:18]} {[%emt 00:00:02]}
Nxd4 {[%clk 00:09:04]} {[%emt 00:00:57]} 10. Qxd4 {[%clk 00:09:15]} {[%emt
00:00:06]} Ne6 {[%clk 00:09:02]} {[%emt 00:00:04]} 11. Qh4 {[%clk 00:09:15]}
{[%emt 00:00:03]} O-O {[%clk 00:08:42]} {[%emt 00:00:23]} 12. Bh6 {[%clk
00:08:54]} {[%emt 00:00:24]} Qb6 {[%clk 00:05:35]} {[%emt 00:03:11]} 13. Bxg7
{[%clk 00:08:36]} {[%emt 00:00:20]} Nxg7 {[%clk 00:05:13]} {[%emt 00:00:25]} 14.
Qxe7 {[%clk 00:08:31]} {[%emt 00:00:08]} Nf5 {[%clk 00:03:29]} {[%emt
00:01:47]} 15. Qg5 {[%clk 00:07:41]} {[%emt 00:00:52]} a6 {[%clk 00:03:25]}
{[%emt 00:00:08]} 16. Bd3 {[%clk 00:07:37]} {[%emt 00:00:07]} Qxb2 {[%clk
00:02:13]} {[%emt 00:01:15]} 17. Nd5 {[%clk 00:07:37]} {[%emt 00:00:03]} h6
{[%clk 00:01:19]} {[%emt 00:00:57]} 18. Qf6 {[%clk 00:06:57]} {[%emt 00:00:43]}
Ng7 {[%clk 00:00:26]} {[%emt 00:00:57]} 19. Ne7+ {[%clk 00:06:53]} {[%emt
00:00:07]} 1-0